[Event "German-ch Blitz Women 2022"]
[Site "Magdeburg"]
[Date "2022.08.13"]
[Round "6.12"]
[White "Wulf, Constanze"]
[Black "Stangl, Anita"]
[Result "0-1"]
[ECO "A04"]
[WhiteElo "1835"]
[BlackElo "2023"]
[Annotator "RC"]
[PlyCount "55"]
[EventDate "2022.08.10"]
[EventType "tourn"]
[EventCountry "GER"]
[SourceTitle "playchess.com"]
[Source "ChessBase"]
[SourceQuality "1"]
[TimeControl "180+2"]

1. Nf3 {[%emt 0:00:02]} e6 {[%emt 0:00:00]} 2. b3 {[%emt 0:00:01]} d5 {[%emt 0:00:01]} 3. Bb2 {[%emt 0:00:01]} c5 {[%emt 0:00:01]} 4. e3 {[%emt 0:00:02]} Nc6 {[%emt 0:00:01]} 5. Bb5 {[%emt 0:00:02]} Nf6 {[%emt 0:00:01]} 6. O-O {[%emt 0:00:02]} Bd6 {[%emt 0:00:04]} 7. d3 {[%emt 0:00:02]} O-O {[%emt 0:00:02]} 8. Bxc6 {[%emt 0:00:01]} bxc6 {[%emt 0:00:01]} 9. Qe2 {[%emt 0:00:03]} Ba6 {[%emt 0:00:02]} 10. Nbd2 {[%emt 0:00:06]} Rb8 {[%emt 0:00:02]} 11. e4 {[%emt 0:00:11]} Nd7 {[%emt 0:00:32]} 12. Rfe1 {[%emt 0:00:45]} Be7 {[%emt 0:00:10]} 13. Nf1 {[%emt 0:00:32]} Nf6 {[%emt 0:00:13]} 14. Ng3 {[%emt 0:00:03]} c4 {[%emt 0:00:07]} 15. dxc4 {[%emt 0:00:13]} dxc4 {[%emt 0:00:01]} 16. Qe3 {[%emt 0:00:27]} Qb6 {[%emt 0:00:18]} 17. Qc3 {[%emt 0:00:18]} Bb4 {[%emt 0:00:27]} 18. Qe5 {[%emt 0:00:29]} Bxe1 {[%emt 0:00:03]} 19. Rxe1 {[%emt 0:00:01]} Qb5 {[%emt 0:00:06]} 20. Qc3 {[%emt 0:00:11]} Rfd8 {[%emt 0:00:09]} 21. Ne5 {[%emt 0:00:08]} Qb4 {[%emt 0:00:14]} 22. Qe3 {[%emt 0:00:03]} Qd6 {[%emt 0:00:18]} 23. Qg5 Ne8 24. Ng4 Kf8 25. Nh5 g6 26. Qh6+ Ke7 27. Qxh7 Qd2 28. Rf1 0-1

[Event "German-ch Blitz Women 2022"]
[Site "Magdeburg"]
[Date "2022.08.13"]
[Round "7.1"]
[White "Stangl, Anita"]
[Black "Paehtz, Elisabeth"]
[Result "0-1"]
[ECO "B90"]
[WhiteElo "2023"]
[BlackElo "2484"]
[Annotator "TA"]
[PlyCount "72"]
[EventDate "2022.08.10"]
[EventType "tourn"]
[EventCountry "GER"]
[SourceTitle "playchess.com"]
[Source "ChessBase"]
[SourceQuality "1"]
[TimeControl "180+2"]

{[%evp 15,71,0,0,-36,-18,-44,-39,-37,-40,-78,-23,-18,-19,-36,0,-17,0,-4,0,0,15,-8,31,0,33,-31,-38,-37,-40,-41,-48,-150,-127,-425,-422,-408,-404,-558,-425,-427,-371,-444,-434,-546,-454,-589,-562,-610,-495,-701,-697,-1006,-676,-1374,-713,-817,-633,-29999]} 1. e4 {[%emt 0:00:00]} c5 {[%emt 0:00:00]} 2. Nf3 {[%emt 0:00:02]} d6 {[%emt 0:00:01]} 3. d4 {[%emt 0:00:00]} cxd4 {[%emt 0:00:01]} 4. Nxd4 {[%emt 0:00:01]} Nf6 5. Nc3 a6 {[%emt 0:00:02]} 6. Bc4 {[%emt 0:00:02]} e6 {[%emt 0:00:02]} 7. a3 {[%emt 0:00:00]} Be7 {[%emt 0:00:08]} 8. O-O {[%emt 0:00:02]} O-O {[%emt 0:00:02]} 9. Nde2 {[%emt 0:00:00] B86: Sicilian Scheveningen/Najdorf: 6 Bc4, without early ...b5.} Nbd7 {[%emt 0:00:02]} 10. Ng3 {[%emt 0:00:02]} b5 {[%emt 0:00:03]} 11. Ba2 {[%emt 0:00:00] Black is slightly better.} Bb7 {[%emt 0:00:05]} 12. f4 {[%emt 0:00:02]} Rc8 {[%emt 0:00:03]} (12... a5 $17 13. Be3 b4) 13. f5 $11 {[%emt 0:00:01]} e5 {[%emt 0:00:01][%cal Oc8c3]} 14. Qe2 {[%emt 0:00:05] [#]} Nc5 $146 {[%emt 0:00:12]} ({Predecessor:} 14... Nb6 15. Bg5 Nc4 16. Bxc4 Rxc4 17. Rad1 Rd4 18. Bxf6 Bxf6 19. Nh5 Qe7 20. Rd3 Kh8 21. Rh3 {0-1 (32) Brozyna,M (2173)-Belous,M (2299) Krakow 2019}) 15. Bd2 {[%emt 0:00:31]} Qb6 {[%emt 0:00:04] [#] aiming for ...Ncxe4+.} 16. Kh1 {[%emt 0:00:02]} h6 {[%emt 0:00:06]} 17. Rad1 {[%emt 0:00:01]} Ncd7 {[%emt 0:00:07]} 18. Nh5 {[%emt 0:00:09]} Kh7 {[%emt 0:00:13]} 19. Be3 {[%emt 0:00:23]} Qd8 {[%emt 0:00:07][%cal Oc8c3]} 20. Bf2 {[%emt 0:00:16] [#]} ({White should try} 20. Nxf6+ $14 Nxf6 21. Nd5) 20... Rxc3 $1 $15 {[%emt 0:00:03]} 21. bxc3 {[%emt 0:00:01]} (21. Nxf6+ Nxf6) 21... Nxe4 {[%emt 0:00:05]} ({Of course not} 21... Bxe4 22. Nxf6+ Nxf6 23. Bh4 $11) 22. Qg4 {[%emt 0:00:09][%csl Gh5][%cal Rg4g7]} Bg5 {[%emt 0:00:10]} 23. h4 {[%emt 0:00:15]} (23. Bh4 $1 $15) 23... Ndf6 {[%emt 0:00:06] Pair of Knights!} 24. Qe2 {[%emt 0:00:14][%mdl 8192] This costs White the game.} (24. Nxf6+ $17 {is the only way for White.} Bxf6 25. Be1) 24... Nxc3 $19 {[%emt 0:00:18]} 25. Nxf6+ {[%emt 0:00:09]} Bxf6 {[%emt 0:00:02] Dancing on a razor blade.} ({Worse is} 25... gxf6 26. Qh5 Nxd1 27. Rxd1 $17) 26. Qd3 {[%emt 0:00:08]} Nxd1 {[%emt 0:00:09]} 27. Rxd1 {[%emt 0:00:02]} Qc7 {[%emt 0:00:04][%cal Od6d5]} 28. Kh2 {[%emt 0:00:22]} d5 {[%emt 0:00:06][%cal Bd6d5,Bd5d4][%mdl 32]} 29. Qg3 {[%emt 0:00:08]} d4 {[%emt 0:00:07]} 30. Bb3 {[%emt 0:00:03]} Qc6 {[%emt 0:00:08][%cal Of6h4] And now ...Bxh4! would win.} 31. Rg1 {[%emt 0:00:04]} Qe4 {[%emt 0:00:03]} 32. a4 {[%emt 0:00:07]} (32. Qd3 $142) 32... Qxf5 {[%emt 0:00:03] Hoping for ...e4.} 33. axb5 {[%emt 0:00:07]} axb5 {[%emt 0:00:01] Threatens to win with ...e4.} 34. Ba2 {[%emt 0:00:04]} Be4 {[%emt 0:00:07]} (34... Qxc2 $2 35. Bb1 Be4 36. Bxc2 Bxc2 37. Rc1 $18) 35. Rf1 {[%emt 0:00:05]} Qg6 {[%emt 0:00:07]} 36. Qb3 {[%emt 0:00:07]} Qxg2# {[%emt 0:00:03] Weighted Error Value: White=1.12/Black=0.50} 0-1

[Event "German-ch Blitz Women 2022"]
[Site "Magdeburg"]
[Date "2022.08.13"]
[Round "7.2"]
[White "Falke, Ornella"]
[Black "Wulf, Constanze"]
[Result "1-0"]
[ECO "D36"]
[WhiteElo "1912"]
[BlackElo "1835"]
[Annotator "TA"]
[PlyCount "67"]
[EventDate "2022.08.10"]
[EventType "tourn"]
[EventCountry "GER"]
[SourceTitle "playchess.com"]
[Source "ChessBase"]
[SourceQuality "1"]
[TimeControl "180+2"]

{[%evp 10,67,16,19,22,25,29,23,43,27,19,25,58,7,7,0,0,0,7,-13,45,-29,-25,-31,-18,-150,-143,-150,-150,-151,-154,-157,-125,-129,-116,-129,430,385,717,234,2177,10,1442,0,0,0,0,0,29991,29991,29991,29992,29992,29987,29989,29979,29973,29967,29996,29979]} 1. d4 {[%emt 0:00:01]} d5 {[%emt 0:00:01]} 2. c4 {[%emt 0:00:01]} e6 {[%emt 0:00:01]} 3. Nc3 {[%emt 0:00:02]} c6 {[%emt 0:00:01]} 4. cxd5 {[%emt 0:00:09]} exd5 {[%emt 0:00:06]} 5. Qc2 {[%emt 0:00:03]} Nf6 {[%emt 0:00:04]} 6. Bg5 {[%emt 0:00:02]} Bg4 {[%emt 0:00:13] D36: Queen's Gambit Declined: Exchange Variation: Main line (5 Bg5 c6 6 Qc2).} 7. e3 {[%emt 0:00:15]} Nbd7 {[%emt 0:00:04]} 8. Bd3 {[%emt 0:00:03]} Bd6 {[%emt 0:00:45] White has an edge.} 9. h3 {[%emt 0:00:13] [#]} Bh5 $146 {[%emt 0:00:07]} ({Predecessor:} 9... Be6 10. Nge2 Qc7 11. O-O-O O-O-O 12. Kb1 Kb8 13. f3 Rc8 14. e4 h6 15. Bh4 Be7 {1-0 (33) Peinado Rincon,G (2220)-Dabraccio,G Charala 2010}) 10. Nge2 {[%emt 0:00:07]} Qc7 {[%emt 0:00:08]} 11. Nf4 {[%emt 0:00:08]} (11. f3 $14) 11... Bg6 $11 {[%emt 0:00:15]} 12. Nxg6 {[%emt 0:00:03]} hxg6 {[%emt 0:00:20]} 13. O-O-O {[%emt 0:00:15]} O-O-O {[%emt 0:00:16]} 14. f3 {[%emt 0:00:12]} Rde8 {[%emt 0:00:02]} (14... Nf8 $11) 15. Rhe1 {[%emt 0:00:02]} (15. e4 $14) 15... Bg3 {[%emt 0:00:05]} 16. Re2 {[%emt 0:00:02]} Nh7 {[%emt 0:00:10]} 17. Bf4 {[%emt 0:00:31]} (17. h4 $11) 17... Bxf4 $17 {[%emt 0:00:01]} 18. exf4 {[%emt 0:00:02]} Qxf4+ {[%emt 0:00:02]} 19. Kb1 {[%emt 0:00:01]} Nhf6 {[%emt 0:00:13]} (19... Qxd4 20. Rxe8+ Rxe8 21. Bxg6 $1 $16 {[%mdl 512]}) 20. Rc1 {[%emt 0:00:21]} Qxd4 {[%emt 0:00:06]} 21. Nb5 {[%emt 0:00:03]} Qb4 {[%emt 0:00:18]} 22. a3 {[%emt 0:00:14]} Qf8 {[%emt 0:00:13][%mdl 8192]} ({Weaker is} 22... Rxe2 23. Bxe2 Qa5 24. Nd6+ Kc7 25. Nxf7 $15) (22... Qf4 $1 $17 {stays on course. Strongly threatening ...Kb8.} 23. Nxa7+ Kd8) 23. Nxa7+ {[%emt 0:00:03]} Kb8 $2 {[%emt 0:00:02] [#]} (23... Kd8 24. Rxe8+ Qxe8) 24. Qa4 $2 {[%emt 0:00:01]} (24. Nxc6+ $1 {[%mdl 512]} bxc6 25. Qxc6) 24... Nb6 $2 {[%emt 0:00:09] [#]} (24... Ne5 25. Bb5 Nc4 26. Bxc4 dxc4 27. Nxc6+ bxc6 28. Rxc4 $1 (28. Rxe8+ Qxe8 29. Rxc4 Kb7 $11) 28... Rxe2 29. Qxc6 Rxb2+ 30. Kxb2 $18) (24... Rc8 25. Nxc8 Qxc8) 25. Qa5 $2 {[%emt 0:00:11]} ({White has to play} 25. Nxc6+ $1 $18 {[%mdl 512]} Kc8 (25... Kc7 26. Qf4+) 26. Qa7 Rxe2 27. Na5+ Kd7 28. Qxb7+ Ke6 29. Rc6+ Qd6 30. Rxd6+ Kxd6 31. Qxb6+ Ke5 32. Bxe2) 25... Rxe2 $4 {[%emt 0:00:03][%mdl 8192]} (25... Nfd7 $11) 26. Bxe2 $2 {[%emt 0:00:01]} (26. Nxc6+ $18 Kc8 27. Qxb6) 26... Qd8 {[%emt 0:00:02] ...Re8 is the strong threat.} 27. Nxc6+ $1 {[%emt 0:00:19]} bxc6 {[%emt 0:00:01]} 28. Rxc6 {[%emt 0:00:01]} Nc4 {[%emt 0:00:03][%mdl 8192]} (28... Nfd7 $11) 29. Qb5+ {[%emt 0:00:04] White mates.} Nb6 {[%emt 0:00:02]} 30. Rxb6+ {[%emt 0:00:02]} Kc8 {[%emt 0:00:06]} 31. Rc6+ {[%emt 0:00:05]} Kd7 {[%emt 0:00:02]} 32. Rxf6+ {[%emt 0:00:02]} Ke7 {[%emt 0:00:01]} 33. Rb6 {[%emt 0:00:06]} Qd7 {[%emt 0:00:03]} 34. Rb7 {[%emt 0:00:01] Weighted Error Value: White=0.75/Black=0.57} 1-0

[Event "German-ch Blitz Women 2022"]
[Site "Magdeburg"]
[Date "2022.08.13"]
[Round "7.3"]
[White "Kosovska, Olena"]
[Black "Doll, Rebecca"]
[Result "0-1"]
[ECO "C84"]
[WhiteElo "1831"]
[BlackElo "1933"]
[Annotator "TA"]
[PlyCount "96"]
[EventDate "2022.08.10"]
[EventType "tourn"]
[EventCountry "GER"]
[SourceTitle "playchess.com"]
[Source "ChessBase"]
[SourceQuality "1"]
[TimeControl "180+2"]

{[%evp 13,96,18,27,20,11,-4,19,9,10,12,9,0,0,-14,-14,-29,0,12,45,-28,-25,-57,-12,-17,-10,-221,0,-58,-47,-40,-61,-105,70,78,66,0,0,-24,87,81,96,45,73,47,118,112,120,106,108,51,62,0,0,0,0,0,0,0,5,0,0,0,0,0,0,0,0,0,0,-836,-809,-887,-867,-29978,-29979,-29979,-29980,-29980,-29980,-29979,-29977,-29978,-29977,-29972,-6629]} 1. e4 {[%emt 0:00:01]} e5 {[%emt 0:00:01]} 2. Nf3 {[%emt 0:00:01]} Nc6 {[%emt 0:00:04]} 3. Bb5 {[%emt 0:00:01]} a6 {[%emt 0:00:01]} 4. Ba4 {[%emt 0:00:01]} Nf6 {[%emt 0:00:02]} 5. O-O {[%emt 0:00:01]} Be7 {[%emt 0:00:01]} 6. d3 {[%emt 0:00:03]} b5 {[%emt 0:00:01]} 7. Bb3 {[%emt 0:00:01]} O-O {[%emt 0:00:08]} 8. h3 {[%emt 0:00:02] C84: Closed Ruy Lopez: Unusual White 6th moves.} d6 {[%emt 0:00:03]} 9. a4 {[%emt 0:00:03]} Bb7 {[%emt 0:00:02]} 10. Be3 {[%emt 0:00:03] [#] The position is equal.} Na5 $146 {[%emt 0:00:18]} ({Predecessor:} 10... b4 11. Nbd2 Na5 12. Ba2 c5 13. Nc4 Qc7 14. Nxa5 Qxa5 15. Bg5 Qc7 16. Bxf6 Bxf6 {1-0 (65) Armstrong,M (1342)-Wolf,H (1220) Tornelo INT 2020}) 11. Ba2 {[%emt 0:00:12]} c5 {[%emt 0:00:04]} 12. axb5 {[%emt 0:00:09]} axb5 {[%emt 0:00:05]} 13. Nc3 {[%emt 0:00:16]} b4 {[%emt 0:00:35]} 14. Ne2 {[%emt 0:00:05]} Re8 {[%emt 0:00:31]} 15. Ng3 {[%emt 0:00:01]} Bf8 {[%emt 0:00:02][%cal Ob4b3]} 16. Nf5 {[%emt 0:00:04]} (16. Nd2 $14) 16... d5 $11 {[%emt 0:00:14]} 17. exd5 {[%emt 0:00:04][%cal Od5d6]} Bxd5 {[%emt 0:00:13]} 18. Bg5 {[%emt 0:00:08]} b3 {[%emt 0:00:25]} 19. cxb3 {[%emt 0:00:06]} (19. Bb1 $1 $11 {and White stays safe.}) 19... Nxb3 $2 {[%emt 0:00:13]} 20. Bxb3 {[%emt 0:00:05]} (20. Ne3 $11 Be6 21. Bxb3 Rxa1 22. Qxa1 Bxb3 23. Ng4) 20... Rxa1 $15 {[%emt 0:00:01]} 21. Qxa1 {[%emt 0:00:03]} Bxb3 {[%emt 0:00:02]} 22. Qa6 {[%emt 0:00:25]} Qc8 $2 {[%emt 0:00:19]} (22... Re6 $1 $17 {[%cal Re6a6]} 23. Qb5 Bc2 24. Bxf6 Rxf6) 23. Qxc8 $14 {[%emt 0:00:13]} Rxc8 {[%emt 0:00:01] [#]} 24. Nxe5 {[%emt 0:00:03]} (24. Nh6+ $1 $14 gxh6 25. Bxf6) 24... Nd5 $11 {[%emt 0:00:17] Strongly threatening ...f6.} 25. Nc4 {[%emt 0:00:04]} Bxc4 {[%emt 0:00:04]} (25... f6 $11 {remains equal.} 26. Bd2 Bc2) 26. dxc4 $16 {[%emt 0:00:01]} Nb4 {[%emt 0:00:02]} 27. Ne7+ {[%emt 0:00:02]} (27. Ra1 $16) 27... Bxe7 $14 {[%emt 0:00:01]} 28. Bxe7 {[%emt 0:00:01][%mdl 4096] Endgame KRB-KRN} Rc7 {[%emt 0:00:01]} (28... f6 $14) 29. Bd6 {[%emt 0:00:08]} Rc6 {[%emt 0:00:01]} 30. Re1 {[%emt 0:00:08][%cal Re1e8]} f6 {[%emt 0:00:01] [#]} 31. Bg3 {[%emt 0:00:05]} (31. Rd1 $1 $16) 31... Nd3 {[%emt 0:00:03][%csl LRb2,LRe1]} 32. Re2 {[%emt 0:00:03]} ({White should play} 32. Re8+ $14 Kf7 33. Rb8) 32... Rb6 $11 {[%emt 0:00:01]} 33. Rd2 {[%emt 0:00:20]} Nxb2 {[%emt 0:00:02]} 34. Rd5 {[%emt 0:00:11]} Nxc4 {[%emt 0:00:04]} 35. Rxc5 {[%emt 0:00:02]} Rb1+ {[%emt 0:00:04]} 36. Kh2 Nd2 {[%emt 0:00:01] aiming for ...Nf1+.} 37. Bf4 {[%emt 0:00:07]} Nf1+ {[%emt 0:00:02]} 38. Kg1 {[%emt 0:00:05] Rc1 is the strong threat.} Ng3+ {[%emt 0:00:03]} 39. Kh2 Nf1+ {[%emt 0:00:02]} 40. Kg1 {[%emt 0:00:12] And now Rc1 would win.} Ng3+ {[%emt 0:00:01]} 41. Rc1 $2 {[%emt 0:00:01][%mdl 8192]} (41. Kh2 $11 Nf1+) 41... Ne2+ $19 {[%emt 0:00:02]} 42. Kh2 {[%emt 0:00:03]} Nxc1 {[%emt 0:00:01]} 43. Kg3 {[%emt 0:00:02]} Ne2+ {[%emt 0:00:02] Black mates.} 44. Kf3 {[%emt 0:00:01]} Nxf4 {[%emt 0:00:01]} 45. Kxf4 {[%emt 0:00:01]} Rb4+ {[%emt 0:00:01]} 46. Ke3 {[%emt 0:00:00]} Rb3+ {[%emt 0:00:00]} 47. Kf4 {[%emt 0:00:01]} Rb2 {[%emt 0:00:01]} 48. Kg3 {[%emt 0:00:02]} Kf7 {[%emt 0:00:01] Weighted Error Value: White=0.60/Black=0.25 (precise)} (48... g5 $142 49. Kf3 Kf7 50. Kg3 h5 51. Kf3 f5 52. Ke3 h4 53. f3 Rxg2 54. Kd3 Rg3 55. Ke2 Rxh3 56. Ke3 g4 57. Kf4 Rxf3+ 58. Ke5 g3 59. Kd6 g2 60. Kc6 g1=Q 61. Kb5 Qc1 62. Kb4 Ra3 63. Kb5 Rb3+ 64. Ka6 Qa3#) 0-1

[Event "German-ch Blitz Women 2022"]
[Site "Magdeburg"]
[Date "2022.08.13"]
[Round "7.4"]
[White "Leveikina, Jevgenija"]
[Black "Kunze, Kerstin"]
[Result "1/2-1/2"]
[ECO "A46"]
[WhiteElo "2061"]
[BlackElo "2020"]
[Annotator "NA RC"]
[PlyCount "30"]
[EventDate "2022.08.10"]
[EventType "tourn"]
[EventCountry "GER"]
[SourceTitle "playchess.com"]
[Source "ChessBase"]
[SourceQuality "1"]
[TimeControl "180+2"]

1. d4 {[%emt 0:00:01]} Nf6 {[%emt 0:00:02]} 2. Nf3 {[%emt 0:00:00]} e6 {[%emt 0:00:01]} 3. g3 {[%emt 0:00:01]} Be7 {[%emt 0:00:02]} 4. Bg2 {[%emt 0:00:00]} c5 {[%emt 0:00:00]} 5. c3 {[%emt 0:00:01]} O-O {[%emt 0:00:02]} 6. O-O {[%emt 0:00:01]} Nc6 {[%emt 0:00:01]} 7. Bf4 {[%emt 0:00:02]} Nh5 {[%emt 0:00:13]} 8. Bd2 {[%emt 0:00:06]} Nf6 {[%emt 0:00:01]} 9. Bf4 {[%emt 0:00:01]} Nh5 {[%emt 0:00:02]} 10. Bd2 {[%emt 0:00:01]} Nf6 {[%emt 0:00:09]} 11. Bf4 {[%emt 0:00:01]} h6 {[%emt 0:00:16]} 12. Nbd2 {[%emt 0:00:04]} d5 {[%emt 0:00:04]} 13. Ne5 {[%emt 0:00:07]} cxd4 {[%emt 0:00:08]} 14. Nxc6 {[%emt 0:00:02]} bxc6 {[%emt 0:00:03]} 15. cxd4 {[%emt 0:00:01]} c5 {[%emt 0:00:06]} 1/2-1/2

[Event "German-ch Blitz Women 2022"]
[Site "Magdeburg"]
[Date "2022.08.13"]
[Round "7.5"]
[White "Heil, Marina"]
[Black "Rath, Alina"]
[Result "0-1"]
[ECO "A36"]
[WhiteElo "1926"]
[BlackElo "2062"]
[Annotator "NA RC"]
[PlyCount "74"]
[EventDate "2022.08.10"]
[EventType "tourn"]
[EventCountry "GER"]
[SourceTitle "playchess.com"]
[Source "ChessBase"]
[SourceQuality "1"]
[TimeControl "180+2"]

1. c4 {[%emt 0:00:01]} c5 {[%emt 0:00:01]} 2. Nc3 {[%emt 0:00:02]} Nc6 {[%emt 0:00:01]} 3. g3 {[%emt 0:00:00]} g6 {[%emt 0:00:00]} 4. Bg2 {[%emt 0:00:01]} Bg7 {[%emt 0:00:01]} 5. d3 {[%emt 0:00:02]} e5 {[%emt 0:00:01]} 6. e4 {[%emt 0:00:01]} Nge7 {[%emt 0:00:01]} 7. Nge2 {[%emt 0:00:01]} O-O {[%emt 0:00:01]} 8. O-O {[%emt 0:00:02]} d6 {[%emt 0:00:01]} 9. Be3 {[%emt 0:00:09]} f5 {[%emt 0:00:02]} 10. Qc1 {[%emt 0:00:11]} Be6 {[%emt 0:00:03]} 11. Nd5 {[%emt 0:00:03]} Qd7 {[%emt 0:00:06]} 12. a3 {[%emt 0:00:08]} a5 {[%emt 0:00:04]} 13. Nb6 {[%emt 0:00:03]} Qd8 {[%emt 0:00:02]} 14. Nxa8 {[%emt 0:00:01]} Qxa8 {[%emt 0:00:01]} 15. Rb1 {[%emt 0:00:05]} Qc8 {[%emt 0:00:06]} 16. Nc3 {[%emt 0:00:06]} Nd4 {[%emt 0:00:08]} 17. Bh6 {[%emt 0:00:18]} f4 {[%emt 0:00:18]} 18. Bxg7 {[%emt 0:00:05]} Kxg7 {[%emt 0:00:02]} 19. f3 {[%emt 0:00:33]} g5 {[%emt 0:00:02]} 20. g4 {[%emt 0:00:04]} Ng6 {[%emt 0:00:01]} 21. Rf2 {[%emt 0:00:06]} Rh8 {[%emt 0:00:01]} 22. Nd5 {[%emt 0:00:07]} h5 {[%emt 0:00:07]} 23. h3 {[%emt 0:00:19]} Nh4 {[%emt 0:00:02]} 24. Ne7 {[%emt 0:00:16]} Qe8 {[%emt 0:00:32]} 25. Nf5+ {[%emt 0:00:16]} Kf6 {[%emt 0:00:01]} 26. Nxd6 {[%emt 0:00:07]} Qd7 {[%emt 0:00:17]} 27. Nf5 {[%emt 0:00:04]} Nxg2 {[%emt 0:00:02]} 28. Kxg2 {[%emt 0:00:02]} Bxf5 {[%emt 0:00:26]} 29. exf5 {[%emt 0:00:06]} Nb3 {[%emt 0:00:12]} 30. Qc3 {[%emt 0:00:03]} a4 {[%emt 0:00:02]} 31. Re1 {[%emt 0:00:03]} Nd4 {[%emt 0:00:02]} 32. Qa5 {[%emt 0:00:04]} hxg4 {[%emt 0:00:15]} 33. fxg4 {[%emt 0:00:10]} Qc6+ {[%emt 0:00:04]} 34. Re4 {[%emt 0:00:15]} b6 {[%emt 0:00:13]} 35. Qa7 {[%emt 0:00:03]} Qd6 {[%emt 0:00:12]} 36. Rfe2 {[%emt 0:00:02]} f3+ {[%emt 0:00:02]} 37. Kf2 {[%emt 0:00:05]} fxe2 {[%emt 0:00:02]} 0-1

[Event "German-ch Blitz Women 2022"]
[Site "Magdeburg"]
[Date "2022.08.13"]
[Round "7.6"]
[White "Fock, Sana"]
[Black "Skibbe, Diana"]
[Result "1/2-1/2"]
[ECO "C27"]
[WhiteElo "1807"]
[BlackElo "1943"]
[Annotator "TA"]
[PlyCount "104"]
[EventDate "2022.08.10"]
[EventType "tourn"]
[EventCountry "GER"]
[SourceTitle "playchess.com"]
[Source "ChessBase"]
[SourceQuality "1"]
[TimeControl "180+2"]

{[%evp 10,104,0,0,-7,0,20,-45,-30,-89,-40,-38,-41,-40,-12,-10,-9,-11,78,0,15,-64,63,47,43,31,55,34,37,18,47,49,56,35,32,-22,9,12,54,62,119,-40,-37,-45,0,-27,0,0,12,-42,-43,-56,-46,-397,-396,-387,-348,-377,-358,-377,-363,-381,-374,-382,-108,-453,-441,-452,-438,-456,-310,-417,-289,-268,0,0,0,-178,-177,-262,-224,-552,-532,-629,-737,-667,-608,-29972,-8645,-29988,-29989,-29984,-29985,-29992,-29993,-29995,-29993]} 1. e4 e5 2. Nc3 Nf6 3. Bc4 Nxe4 4. Qh5 Nd6 5. Bb3 Be7 6. Qxe5 O-O {C27: Vienna Game: 2...Nf6 3 Bc4 Nxe4.} 7. Nge2 (7. d3 {is interesting.} b6 8. Nf3 Nc6 9. Qf4) 7... Bf6 8. Qg3 {[#]} (8. Qf4 $11) 8... Nf5 $146 {Black is slightly better.} ({Predecessor:} 8... Re8 9. O-O Nc6 10. Qf4 b6 11. d3 Bb7 12. Qg4 Ne5 13. Qh3 Ng6 14. Nf4 Nxf4 15. Bxf4 Bxc3 16. bxc3 {0-1 (54) Schnepper,P (1536)-Hamid,E (1700) Oberhof 2010}) 9. Qf3 (9. Qf4 $11 d6 10. d3) 9... d6 (9... Nh4 $1 $17 {[%cal Rh4f3]} 10. Qg3 c6) 10. O-O Nc6 11. Ne4 Ne5 12. Nxf6+ Qxf6 13. Qc3 Qg6 (13... c5 $11 {remains equal.}) 14. Nf4 (14. d4 $1 $16 {[%cal Rd4e5]} Nc6 15. d5) 14... Qg4 (14... Qh6 15. d4 Nc6 16. Ne6 $1 $16 {[%mdl 512]}) 15. d4 {[#]} (15. d3 $1 $11) 15... Nc6 (15... Nxd4 $1 $15 16. Kh1 (16. Qxc7 Ndf3+ 17. Kh1 Qh4 $17) (16. Be3 Qxf4) 16... c5) 16. h3 $14 Qh4 17. g3 Qd8 18. Be3 Nxe3 (18... g5 19. Nh5 $16) 19. fxe3 Qg5 20. e4 Bd7 21. Rad1 Rae8 22. Qf3 (22. h4 $14 Qd8 23. Rde1) 22... Qh6 23. h4 Kh8 24. c3 f5 (24... g6 $14) 25. Qh5 $2 {White is more active.} (25. exf5 $16 {g4 is the strong threat.} Rxf5 26. Rde1) 25... Qxh5 $15 ({Resist} 25... fxe4 26. Qxh6 gxh6 27. Nd5 $14) 26. Nxh5 fxe4 27. Rxf8+ Rxf8 28. Re1 Re8 29. Bd5 (29. Bf7 $11 Rf8 30. Bd5) 29... Bf5 30. Nf4 Nd8 {Inhibits Bf7.} 31. Bxb7 $2 {[%mdl 8192]} Nxb7 $19 32. b4 a5 33. b5 Nd8 34. Nd5 Ne6 35. a4 h6 36. Rf1 g6 (36... Bg4 $19 {and Black stays clearly on top.} 37. Ne3 Bf3) 37. Kh2 $2 {[%mdl 8192]} (37. g4 $17 Bxg4 38. Nf6) 37... Kg7 {[%cal Oe4e3]} 38. Rd1 Rc8 39. Ne3 c6 {Strongly threatening ...cxb5.} 40. b6 Rb8 41. g4 {[#]} Kf6 42. gxf5 $11 gxf5 {[%cal Bg6f5,Bf5f4,Bf4f3][%mdl 4128] Endgame KRN-KRN} 43. Rf1 $2 (43. d5 $11 cxd5 44. Rxd5) 43... f4 $19 ({Inferior is} 43... Rxb6 44. Rxf5+ Ke7 45. Rxa5 $11) 44. Ng4+ (44. Nc4 $142) 44... Kg6 45. Nf2 $2 (45. Rg1 {nothing else works.} Nf8 46. Kh3) 45... d5 46. Nh3 Kf5 {And now ...e3 would win.} 47. Rb1 f3 {aiming for ...Nf4.} 48. Kg1 Nf4 49. Nf2 e3 {[%cal Be4e3,Be3e2][%mdl 32] Black mates.} 50. Nd1 e2 51. Ne3+ Ke4 52. Kf2 Nd3+ {[%mdl 32768] Weighted Error Value: White=0.79/Black=0.43. An unexpected result.} 1/2-1/2